[Event "35th European Club Cup 2019"]
[Site "Ulcinj"]
[Date "2019.11.15"]
[Round "6.11"]
[White "Vujovic, Savo"]
[Black "Haag, Gregor"]
[Result "0-1"]
[ECO "B49"]
[WhiteElo "2040"]
[BlackElo "2368"]
[Annotator "NA"]
[PlyCount "125"]
[EventDate "2019.11.10"]
[EventType "team-tourn"]
[EventCountry "MNE"]
[SourceTitle "playchess.com"]
[Source "ChessBase"]
[SourceQuality "1"]
[WhiteTeam "Crnogorac"]
[BlackTeam "Riehen SG"]
[TimeControl "40/5400+30:1800+30"]

1. e4 {[%emt 0:00:00]} c5 {[%emt 0:00:00]} 2. Nf3 {[%emt 0:00:00]} e6 {[%emt 0:00:00]} 3. d4 {[%emt 0:00:12]} cxd4 {[%emt 0:00:00]} 4. Nxd4 {[%emt 0:00:04]} Nc6 {[%emt 0:00:00]} 5. Nc3 {[%emt 0:00:07]} Qc7 {[%emt 0:00:00]} 6. Be3 {[%emt 0:00:28]} a6 {[%emt 0:00:00]} 7. Be2 {[%emt 0:00:13]} b5 {[%emt 0:00:25]} 8. O-O {[%emt 0:00:22]} Bb7 {[%emt 0:00:12]} 9. f4 {[%emt 0:03:09]} Bc5 {[%emt 0:01:04]} 10. Bf3 {[%emt 0:03:10]} Qb6 {[%emt 0:03:05]} 11. Nce2 {[%emt 0:00:41]} Nf6 {[%emt 0:09:28]} 12. c3 {[%emt 0:02:47]} Nxd4 {[%emt 0:10:56]} 13. cxd4 {[%emt 0:00:25]} Be7 {[%emt 0:00:18]} 14. Qd3 {[%emt 0:01:20]} d5 {[%emt 0:05:56]} 15. e5 {[%emt 0:00:30]} Ne4 {[%emt 0:00:20]} 16. Ng3 {[%emt 0:01:01]} Nxg3 {[%emt 0:05:19]} 17. hxg3 {[%emt 0:00:06]} O-O {[%emt 0:01:28]} 18. g4 {[%emt 0:01:12]} f6 19. Rac1 {[%emt 0:02:04]} Rac8 {[%emt 0:14:20]} 20. g5 {[%emt 0:01:15]} fxg5 {[%emt 0:10:29]} 21. fxg5 {[%emt 0:00:09]} g6 {[%emt 0:01:26]} 22. Bg4 {[%emt 0:09:14]} b4 {[%emt 0:13:46]} 23. a4 {[%emt 0:09:13]} bxa3 {[%emt 0:07:02]} 24. bxa3 {[%emt 0:00:10]} Rxc1 {[%emt 0:02:53]} 25. Rxc1 {[%emt 0:00:06]} Bc8 {[%emt 0:00:47]} 26. Qb1 {[%emt 0:11:55]} Qxb1 {[%emt 0:03:06]} 27. Rxb1 {[%emt 0:00:01]} Bxa3 {[%emt 0:01:14]} 28. Rb6 {[%emt 0:03:23]} Kf7 {[%emt 0:02:13]} 29. Rc6 {[%emt 0:00:32]} Ke7 {[%emt 0:02:55]} 30. Rc7+ {[%emt 0:00:59]} Bd7 {[%emt 0:00:08]} 31. Ra7 {[%emt 0:01:32]} Rc8 {[%emt 0:02:21]} 32. Be2 {[%emt 0:13:34]} Bc1 {[%emt 0:03:16]} 33. Kf2 {[%emt 0:00:08]} Bxe3+ {[%emt 0:00:11]} 34. Kxe3 {[%emt 0:00:08]} Rc3+ {[%emt 0:00:17]} 35. Kd2 {[%emt 0:00:18]} Rg3 {[%emt 0:00:53]} 36. Bxa6 {[%emt 0:01:41]} Rxg2+ {[%emt 0:01:12]} 37. Kc3 {[%emt 0:00:27]} Kd8 {[%emt 0:00:46]} 38. Kb4 {[%emt 0:01:21]} Rb2+ {[%emt 0:00:32]} 39. Kc5 {[%emt 0:00:59]} Rc2+ {[%emt 0:00:09]} 40. Kb6 {[%emt 0:00:00]} Rb2+ {[%emt 0:00:00]} 41. Kc5 {[%emt 0:01:12]} Rc2+ {[%emt 0:04:05]} 42. Kb6 {[%emt 0:00:15]} Rc6+ {[%emt 0:04:53]} 43. Kb7 {[%emt 0:03:19]} Rc7+ {[%emt 0:07:20]} 44. Kb6 {[%emt 0:00:07]} Rxa7 {[%emt 0:00:06]} 45. Kxa7 {[%emt 0:00:04]} Ba4 {[%emt 0:00:08]} 46. Kb6 {[%emt 0:00:29]} Bc2 {[%emt 0:00:37]} 47. Kc6 {[%emt 0:00:11]} Ke7 {[%emt 0:00:05]} 48. Kc7 {[%emt 0:00:40]} Bf5 {[%emt 0:03:47]} 49. Bf1 {[%emt 0:02:18]} Kf7 {[%emt 0:00:55]} 50. Kd7 {[%emt 0:00:35]} h5 {[%emt 0:05:15]} 51. gxh6 {[%emt 0:00:01]} g5 {[%emt 0:00:06]} 52. h7 {[%emt 0:00:04]} Kg7 {[%emt 0:00:34]} 53. Ke7 {[%emt 0:00:28]} Kxh7 {[%emt 0:00:46]} 54. Kf6 {[%emt 0:00:56]} Kh6 {[%emt 0:00:06]} 55. Bg2 {[%emt 0:00:15]} Bg4 {[%emt 0:00:51]} 56. Bf1 {[%emt 0:00:55]} Kh5 {[%emt 0:00:23]} 57. Bg2 {[%emt 0:00:19]} Kh4 {[%emt 0:00:22]} 58. Bf1 {[%emt 0:00:19]} Bf5 {[%emt 0:00:40]} 59. Bg2 {[%emt 0:00:19]} Kg4 {[%emt 0:00:33]} 60. Bf1 {[%emt 0:01:06]} Kf4 {[%emt 0:00:11]} 61. Bg2 {[%emt 0:00:31]} g4 {[%emt 0:01:00]} 62. Bh1 {[%emt 0:00:08]} g3 {[%emt 0:00:48]} 63. Bg2 {[%emt 0:00:04] Kxe5+} 0-1

[Event "35th European Club Cup 2019"]
[Site "Ulcinj"]
[Date "2019.11.15"]
[Round "6.12"]
[White "Smith, Axel"]
[Black "Bratkovic, Sham"]
[Result "1-0"]
[ECO "D30"]
[WhiteElo "2465"]
[BlackElo "2232"]
[Annotator "ChessBase"]
[PlyCount "65"]
[EventDate "2019.11.10"]
[EventType "team-tourn"]
[EventCountry "MNE"]
[SourceTitle "playchess.com"]
[Source "ChessBase"]
[SourceQuality "1"]
[WhiteTeam "Koge SK"]
[BlackTeam "Maribor"]
[TimeControl "40/5400+30:1800+30"]

1. Nf3 {[%emt 0:00:00]} d5 {[%emt 0:01:35]} 2. c4 {[%emt 0:00:00]} c6 {[%emt 0:01:00]} 3. e3 {[%emt 0:00:00]} Nf6 {[%emt 0:01:40]} 4. d4 {[%emt 0:00:00]} e6 {[%emt 0:01:25]} 5. b3 {[%emt 0:00:00]} Bb4+ {[%emt 0:03:01]} 6. Nbd2 {[%emt 0:00:09]} c5 {[%emt 0:01:05]} 7. Bb2 {[%emt 0:04:48]} O-O {[%emt 0:04:26]} 8. Bd3 {[%emt 0:03:43]} Ne4 {[%emt 0:07:22]} 9. a3 {[%emt 0:08:15]} Bxd2+ {[%emt 0:06:55]} 10. Nxd2 {[%emt 0:00:11]} f5 {[%emt 0:07:25]} 11. O-O {[%emt 0:18:07]} Nd7 {[%emt 0:08:43]} 12. Nf3 {[%emt 0:07:47]} b6 {[%emt 0:06:45]} 13. cxd5 {[%emt 0:06:01]} exd5 {[%emt 0:00:57]} 14. dxc5 {[%emt 0:00:06]} Ndxc5 {[%emt 0:03:32]} 15. Nd4 {[%emt 0:00:29]} Qg5 {[%emt 0:14:42]} 16. b4 {[%emt 0:03:39]} Ne6 {[%emt 0:06:12]} 17. f4 {[%emt 0:06:26]} Qf6 {[%emt 0:05:09]} 18. Rc1 {[%emt 0:11:00]} Bb7 {[%emt 0:03:58]} 19. Bxe4 {[%emt 0:03:10]} dxe4 {[%emt 0:00:56]} 20. Qb3 {[%emt 0:02:02]} Rae8 {[%emt 0:02:27]} 21. Nb5 {[%emt 0:07:19]} Qg6 {[%emt 0:02:58]} 22. Rc7 {[%emt 0:01:14]} Rf7 {[%emt 0:02:44]} 23. Rxf7 {[%emt 0:00:23]} Qxf7 {[%emt 0:00:06]} 24. Nd6 {[%emt 0:00:14]} Qd7 {[%emt 0:01:10]} 25. Nxe8 {[%emt 0:00:10]} Qxe8 {[%emt 0:00:06]} 26. Rd1 {[%emt 0:01:23]} Kh8 {[%emt 0:00:38]} 27. Rd6 {[%emt 0:01:45]} Bc8 {[%emt 0:02:16]} 28. Qc3 {[%emt 0:03:58]} Qf8 {[%emt 0:01:12]} 29. Rd5 {[%emt 0:03:19]} h6 {[%emt 0:01:48]} 30. Qe5 {[%emt 0:00:52]} Qg8 {[%emt 0:01:23]} 31. h3 {[%emt 0:02:25]} Nf8 {[%emt 0:00:58]} 32. Rd8 {[%emt 0:00:34]} Ba6 {[%emt 0:00:52]} 33. Qd6 {[%emt 0:01:10]} 1-0

[Event "35th European Club Cup 2019"]
[Site "Ulcinj"]
[Date "2019.11.15"]
[Round "6.12"]
[White "Wirthensohn, Heinz"]
[Black "Djurovic, Peko"]
[Result "1-0"]
[ECO "A06"]
[WhiteElo "2313"]
[BlackElo "1943"]
[Annotator "NA"]
[PlyCount "127"]
[EventDate "2019.11.10"]
[EventType "team-tourn"]
[EventCountry "MNE"]
[SourceTitle "playchess.com"]
[Source "ChessBase"]
[SourceQuality "1"]
[WhiteTeam "Riehen SG"]
[BlackTeam "Crnogorac"]
[TimeControl "40/5400+30:1800+30"]

1. Nf3 {[%emt 0:00:00]} d5 {[%emt 0:00:00]} 2. e3 {[%emt 0:00:00]} Nf6 {[%emt 0:00:23]} 3. c4 {[%emt 0:00:00]} e6 {[%emt 0:00:52]} 4. b3 Nbd7 {[%emt 0:00:57]} 5. Bb2 {[%emt 0:01:13]} Be7 6. d4 {[%emt 0:02:06]} O-O {[%emt 0:00:46]} 7. Bd3 {[%emt 0:00:06]} b6 8. O-O {[%emt 0:00:27]} Bb7 {[%emt 0:00:43]} 9. Nc3 {[%emt 0:01:13]} Ne4 {[%emt 0:02:18]} 10. Qc2 {[%emt 0:00:30]} f5 {[%emt 0:01:57]} 11. Ne2 {[%emt 0:00:36]} g5 {[%emt 0:02:36]} 12. cxd5 {[%emt 0:05:40]} exd5 {[%emt 0:01:33]} 13. Ne5 {[%emt 0:00:44]} c5 {[%emt 0:07:53]} 14. f3 {[%emt 0:02:27]} Rc8 {[%emt 0:14:31]} 15. Qd1 {[%emt 0:09:28]} c4 {[%emt 0:05:39]} 16. bxc4 {[%emt 0:04:19]} Nxe5 {[%emt 0:00:45]} 17. dxe5 {[%emt 0:00:40]} dxc4 {[%emt 0:00:07]} 18. Bxe4 {[%emt 0:17:21]} Qxd1 {[%emt 0:01:05]} 19. Raxd1 {[%emt 0:00:18]} fxe4 {[%emt 0:01:51]} 20. Rd7 {[%emt 0:05:39]} exf3 {[%emt 0:00:17]} 21. gxf3 {[%emt 0:00:05]} Bxf3 {[%emt 0:02:43]} 22. Nd4 {[%emt 0:04:17]} Bc5 {[%emt 0:01:10]} 23. Rxf3 {[%emt 0:01:10]} Rxf3 {[%emt 0:00:06]} 24. Nxf3 {[%emt 0:00:07]} Bxe3+ {[%emt 0:00:07]} 25. Kf1 {[%emt 0:04:21]} c3 {[%emt 0:00:18]} 26. Ba3 {[%emt 0:04:28]} c2 {[%emt 0:00:52]} 27. e6 {[%emt 0:02:32]} Bf4 {[%emt 0:11:01]} 28. Nd4 {[%emt 0:09:52]} c1=Q+ {[%emt 0:04:56]} 29. Bxc1 {[%emt 0:00:08]} Rxc1+ {[%emt 0:00:08]} 30. Kg2 {[%emt 0:00:53]} Re1 {[%emt 0:04:08]} 31. Rd8+ {[%emt 0:04:36]} Kg7 {[%emt 0:00:22]} 32. e7 {[%emt 0:00:30]} Rxe7 {[%emt 0:01:37]} 33. Nf5+ {[%emt 0:00:00]} Kf7 {[%emt 0:00:07]} 34. Nxe7 {[%emt 0:00:28]} Kxe7 {[%emt 0:00:02]} 35. Ra8 {[%emt 0:00:37]} a5 {[%emt 0:01:03]} 36. Ra6 {[%emt 0:02:06]} Bc7 {[%emt 0:02:04]} 37. Ra8 {[%emt 0:01:21]} Kd6 {[%emt 0:03:22]} 38. Rh8 {[%emt 0:00:50]} Kc5 {[%emt 0:00:20]} 39. Rxh7 {[%emt 0:00:07]} Bd8 {[%emt 0:00:26]} 40. Rd7 {[%emt 0:00:00]} Bf6 {[%emt 0:00:00]} 41. Kf3 {[%emt 0:04:39]} Be5 {[%emt 0:01:15]} 42. h3 {[%emt 0:00:26]} b5 {[%emt 0:00:09]} 43. Ke4 {[%emt 0:02:30]} Bf6 {[%emt 0:05:34]} 44. Kf5 {[%emt 0:00:30]} Bc3 {[%emt 0:00:15]} 45. Kxg5 {[%emt 0:00:22]} b4 {[%emt 0:19:13]} 46. Kf4 {[%emt 0:02:26]} a4 {[%emt 0:10:48]} 47. Ke4 b3 {[%emt 0:01:23]} 48. axb3 {[%emt 0:00:36]} axb3 {[%emt 0:00:12]} 49. Kd3 {[%emt 0:01:05]} Be5 {[%emt 0:02:24]} 50. Rb7 {[%emt 0:01:31]} b2 {[%emt 0:00:10]} 51. h4 {[%emt 0:01:42]} Kd6 {[%emt 0:00:51]} 52. h5 {[%emt 0:02:20]} Ke6 {[%emt 0:00:21]} 53. Ke4 Bc3 {[%emt 0:00:21]} 54. Rb6+ {[%emt 0:00:42]} Kf7 {[%emt 0:00:12]} 55. Kf5 {[%emt 0:00:08]} Kg7 {[%emt 0:00:23]} 56. h6+ {[%emt 0:00:30]} Kh7 {[%emt 0:00:30]} 57. Kg5 {[%emt 0:00:21]} Kg8 {[%emt 0:02:23]} 58. Rb7 {[%emt 0:00:20]} Kh8 {[%emt 0:01:19]} 59. Kg6 {[%emt 0:00:37]} Be5 {[%emt 0:00:13]} 60. h7 {[%emt 0:00:30]} b1=Q+ {[%emt 0:00:49]} 61. Rxb1 {[%emt 0:01:35]} Bb2 {[%emt 0:00:17]} 62. Rd1 {[%emt 0:00:26]} Bd4 {[%emt 0:00:16]} 63. Rd2 {[%emt 0:03:09]} Be3 {[%emt 0:00:38]} 64. Re2 {[%emt 0:00:04]} 1-0

[Event "35th European Club Cup 2019"]
[Site "Ulcinj"]
[Date "2019.11.15"]
[Round "6.12"]
[White "Salama, Omar"]
[Black "Kosanovic, Goran A"]
[Result "0-1"]
[ECO "D05"]
[WhiteElo "2193"]
[BlackElo "2313"]
[Annotator "NA"]
[PlyCount "66"]
[EventDate "2019.11.10"]
[EventType "team-tourn"]
[EventCountry "MNE"]
[SourceTitle "playchess.com"]
[Source "ChessBase"]
[SourceQuality "1"]
[WhiteTeam "Reykjavik CC"]
[BlackTeam "Sloven Ruma"]
[TimeControl "40/5400+30:1800+30"]

1. d4 {[%emt 0:00:00]} Nf6 {[%emt 0:00:00]} 2. Nf3 {[%emt 0:00:00]} c5 {[%emt 0:00:00]} 3. e3 {[%emt 0:00:12]} e6 {[%emt 0:02:06]} 4. Bd3 {[%emt 0:00:34]} d5 {[%emt 0:00:15]} 5. b3 {[%emt 0:00:41]} Nc6 {[%emt 0:02:30]} 6. O-O {[%emt 0:00:39]} Be7 {[%emt 0:01:07]} 7. Bb2 {[%emt 0:00:49]} cxd4 {[%emt 0:00:10]} 8. exd4 {[%emt 0:00:53]} O-O {[%emt 0:00:18]} 9. a3 b6 {[%emt 0:02:31]} 10. Nbd2 {[%emt 0:06:18]} a5 {[%emt 0:00:30]} 11. Ne5 {[%emt 0:02:01]} Nxe5 {[%emt 0:01:06]} 12. dxe5 {[%emt 0:00:07]} Nd7 {[%emt 0:00:20]} 13. f4 {[%emt 0:03:11]} Nc5 {[%emt 0:06:15]} 14. Be2 {[%emt 0:24:32]} Ba6 {[%emt 0:06:22]} 15. Bxa6 {[%emt 0:00:43]} Rxa6 {[%emt 0:04:55]} 16. Qe2 {[%emt 0:00:43]} Ra7 {[%emt 0:01:20]} 17. Rad1 {[%emt 0:02:41]} Qc8 {[%emt 0:01:00]} 18. Rf3 {[%emt 0:15:48]} Rc7 {[%emt 0:01:31]} 19. Bd4 {[%emt 0:10:04]} Rd8 {[%emt 0:16:24]} 20. a4 {[%emt 0:07:10]} Ne4 {[%emt 0:12:16]} 21. Nxe4 {[%emt 0:06:53]} dxe4 {[%emt 0:00:15]} 22. Qxe4 {[%emt 0:00:23]} Rxc2 {[%emt 0:00:48]} 23. Rfd3 {[%emt 0:01:08]} Rc1 {[%emt 0:01:13]} 24. Kf1 {[%emt 0:06:55]} Qc2 {[%emt 0:01:51]} 25. Rxc1 {[%emt 0:01:19]} Qxc1+ {[%emt 0:00:11]} 26. Ke2 {[%emt 0:00:20]} Qc2+ {[%emt 0:00:52]} 27. Ke3 {[%emt 0:00:58]} Ba3 {[%emt 0:01:36]} 28. Rc3 {[%emt 0:03:14]} Qd1 {[%emt 0:01:57]} 29. Rd3 {[%emt 0:04:26]} Qf1 {[%emt 0:08:10]} 30. Bc3 {[%emt 0:01:38]} Bc5+ {[%emt 0:03:10]} 31. Bd4 {[%emt 0:00:08]} Qg1+ {[%emt 0:00:33]} 32. Kf3 {[%emt 0:00:47]} Rxd4 {[%emt 0:00:26]} 33. Rxd4 {[%emt 0:00:27]} Qxd4 {[%emt 0:00:09]} 0-1

[Event "35th European Club Cup 2019"]
[Site "Ulcinj"]
[Date "2019.11.15"]
[Round "6.13"]
[White "Laurusas, Tomas"]
[Black "Abergel, Thal"]
[Result "1/2-1/2"]
[ECO "D31"]
[WhiteElo "2499"]
[BlackElo "2469"]
[Annotator "ChessBase"]
[PlyCount "88"]
[EventDate "2019.11.10"]
[EventType "team-tourn"]
[EventCountry "MNE"]
[SourceTitle "playchess.com"]
[Source "ChessBase"]
[SourceQuality "1"]
[WhiteTeam "MRU-ROSK Consulting"]
[BlackTeam "Viernheim"]
[TimeControl "40/5400+30:1800+30"]

1. d4 d5 2. c4 e6 3. Nc3 a6 4. cxd5 exd5 5. Nf3 h6 6. Bf4 Nf6 7. e3 Bd6 8. Bg3 Qe7 9. Bd3 Nbd7 10. O-O Bxg3 11. hxg3 c6 12. Qc2 O-O 13. Rab1 Re8 14. Nd2 Ng4 15. Rfe1 Qg5 16. Nf3 Qh5 17. Ne2 g5 18. Nc3 Ndf6 19. b4 Be6 20. a4 Re7 21. e4 dxe4 22. Nxe4 Nxe4 23. Rxe4 Rae8 24. Rbe1 Kg7 25. Bc4 Qg6 26. Qb2 Kf8 27. Bxe6 Rxe6 28. Ne5 Nxe5 29. dxe5 Rd8 30. Rd4 Ree8 31. Red1 Rd5 32. Rxd5 cxd5 33. Qd4 Qc2 34. f4 Qxa4 35. Qc5+ Kg7 36. Rxd5 Qa1+ 37. Kh2 gxf4 38. gxf4 Qe1 39. Kh3 Qh1+ 40. Kg3 Kh8 41. Kf3 Rg8 42. Rd2 Qh5+ 43. Ke3 Qh1 44. Kf3 Qh5+ 1/2-1/2

[Event "35th European Club Cup 2019"]
[Site "Ulcinj"]
[Date "2019.11.15"]
[Round "6.13"]
[White "Cernousek, Lukas"]
[Black "Goldsztejn, Gildas"]
[Result "0-1"]
[ECO "C07"]
[WhiteElo "2461"]
[BlackElo "2426"]
[Annotator "ChessBase"]
[PlyCount "104"]
[EventDate "2019.11.10"]
[EventType "team-tourn"]
[EventCountry "MNE"]
[SourceTitle "playchess.com"]
[Source "ChessBase"]
[SourceQuality "1"]
[WhiteTeam "Unichess"]
[BlackTeam "Asnieres"]
[TimeControl "40/5400+30:1800+30"]

1. e4 {[%emt 0:00:00]} e6 {[%emt 0:00:00]} 2. d4 d5 3. Nd2 {[%emt 0:00:54]} c5 {[%emt 0:00:00]} 4. Ngf3 cxd4 {[%emt 0:00:00]} 5. Nxd4 {[%emt 0:02:31]} Nf6 {[%emt 0:00:06]} 6. exd5 {[%emt 0:08:12]} Qxd5 {[%emt 0:04:08]} 7. Nb5 {[%emt 0:00:13]} Na6 {[%emt 0:01:09]} 8. Nc3 {[%emt 0:09:19]} Qd8 {[%emt 0:00:22]} 9. Qf3 {[%emt 0:00:53]} Nb4 {[%emt 0:01:29]} 10. Qd1 {[%emt 0:02:28]} Be7 {[%emt 0:09:19]} 11. Be2 {[%emt 0:04:13]} O-O {[%emt 0:01:28]} 12. O-O {[%emt 0:00:07]} e5 {[%emt 0:04:17]} 13. a3 {[%emt 0:05:56]} Nc6 {[%emt 0:00:24]} 14. Nde4 {[%emt 0:08:03]} Nxe4 {[%emt 0:02:20]} 15. Nxe4 {[%emt 0:00:03]} Be6 {[%emt 0:00:21]} 16. Be3 {[%emt 0:07:38]} Nd4 {[%emt 0:03:12]} 17. Bxd4 {[%emt 0:01:05]} exd4 {[%emt 0:00:06]} 18. Bd3 {[%emt 0:05:59]} Qb6 {[%emt 0:22:30]} 19. b3 {[%emt 0:05:49]} Rad8 {[%emt 0:09:58]} 20. Qd2 {[%emt 0:09:45]} Bd5 {[%emt 0:04:51]} 21. Rfe1 {[%emt 0:01:38]} Rfe8 {[%emt 0:01:36]} 22. Re2 {[%emt 0:02:12]} Bc6 {[%emt 0:15:58]} 23. Qf4 {[%emt 0:02:46]} Qa5 {[%emt 0:01:45]} 24. a4 {[%emt 0:03:03]} Qh5 {[%emt 0:06:10]} 25. Rae1 {[%emt 0:03:59]} Qh4 {[%emt 0:04:59]} 26. Qd2 {[%emt 0:08:03]} g6 {[%emt 0:02:32]} 27. Qa5 {[%emt 0:03:44]} a6 {[%emt 0:01:55]} 28. Bc4 {[%emt 0:00:28]} Qf4 {[%emt 0:00:45]} 29. Qb6 {[%emt 0:02:56]} Kg7 {[%emt 0:01:08]} 30. Bxa6 {[%emt 0:00:56]} bxa6 {[%emt 0:01:09]} 31. Qxc6 {[%emt 0:00:03]} Bb4 {[%emt 0:00:15]} 32. Rd1 {[%emt 0:01:33]} d3 {[%emt 0:01:00]} 33. cxd3 {[%emt 0:00:14]} Re6 {[%emt 0:00:12]} 34. Qc4 {[%emt 0:00:58]} a5 {[%emt 0:00:37]} 35. Ng3 {[%emt 0:01:13]} Rd4 {[%emt 0:00:09]} 36. Qc8 {[%emt 0:00:25]} Red6 {[%emt 0:00:43]} 37. Re3 {[%emt 0:00:28]} Qg5 {[%emt 0:00:59]} 38. Qc2 {[%emt 0:00:39]} Qd5 {[%emt 0:00:09]} 39. h3 {[%emt 0:00:27]} Rc6 {[%emt 0:00:01]} 40. Qb2 {[%emt 0:00:00]} Bc3 {[%emt 0:00:00]} 41. Qa2 {[%emt 0:12:53]} Rb4 {[%emt 0:08:14]} 42. Ne2 {[%emt 0:01:10]} Be5 {[%emt 0:00:23]} 43. d4 {[%emt 0:00:36]} Bc7 {[%emt 0:00:13]} 44. Rdd3 {[%emt 0:04:41]} h5 {[%emt 0:08:54]} 45. h4 Rf6 {[%emt 0:05:11]} 46. Qd2 {[%emt 0:05:26]} Rbb6 {[%emt 0:02:22]} 47. Qc2 {[%emt 0:07:27]} Bb8 {[%emt 0:01:57]} 48. Qc5 {[%emt 0:02:18]} Qd8 {[%emt 0:00:28]} 49. Qe7 {[%emt 0:00:11]} Qc8 {[%emt 0:00:08]} 50. Rc3 {[%emt 0:00:19]} Qf5 {[%emt 0:01:55]} 51. Rf3 {[%emt 0:01:05]} Rfe6 {[%emt 0:00:21]} 52. Qd8 Qb1+ 0-1

[Event "35th European Club Cup 2019"]
[Site "Ulcinj"]
[Date "2019.11.15"]
[Round "6.14"]
[White "Gozzoli, Yannick"]
[Black "Simek, Petr"]
[Result "1-0"]
[ECO "D35"]
[WhiteElo "2600"]
[BlackElo "2307"]
[Annotator "ChessBase"]
[PlyCount "45"]
[EventDate "2019.11.10"]
[EventType "team-tourn"]
[EventCountry "MNE"]
[SourceTitle "playchess.com"]
[Source "ChessBase"]
[SourceQuality "1"]
[WhiteTeam "Asnieres"]
[BlackTeam "Unichess"]
[TimeControl "40/5400+30:1800+30"]

1. Nf3 {[%emt 0:00:00]} d5 {[%emt 0:00:00]} 2. d4 {[%emt 0:00:00]} Nf6 {[%emt 0:00:00]} 3. c4 {[%emt 0:00:00]} e6 {[%emt 0:00:00]} 4. Nc3 {[%emt 0:00:00]} Nbd7 {[%emt 0:00:07]} 5. cxd5 exd5 {[%emt 0:00:08]} 6. Bf4 {[%emt 0:04:08]} c6 {[%emt 0:01:43]} 7. e3 {[%emt 0:01:28]} Be7 {[%emt 0:00:22]} 8. Bd3 {[%emt 0:00:38]} Nh5 {[%emt 0:04:12]} 9. Be5 {[%emt 0:00:54]} Nxe5 {[%emt 0:00:39]} 10. Nxe5 {[%emt 0:00:35]} g6 {[%emt 0:02:58]} 11. Qc2 {[%emt 0:01:58]} Ng7 {[%emt 0:02:16]} 12. O-O-O {[%emt 0:02:52]} Bf5 {[%emt 0:01:46]} 13. e4 {[%emt 0:16:14]} dxe4 {[%emt 0:09:04]} 14. Bc4 {[%emt 0:00:57]} O-O {[%emt 0:03:17]} 15. Nxe4 {[%emt 0:13:52]} Qb6 {[%emt 0:27:23]} 16. g4 {[%emt 0:02:13]} Bg5+ {[%emt 0:03:26]} 17. Kb1 {[%emt 0:01:16]} Bxe4 {[%emt 0:00:06]} 18. Qxe4 {[%emt 0:00:05]} Rad8 {[%emt 0:00:07]} 19. h4 {[%emt 0:05:23]} Bf6 {[%emt 0:00:12]} 20. h5 {[%emt 0:00:20]} Bxe5 {[%emt 0:03:37]} 21. Qxe5 {[%emt 0:04:51]} Qb4 {[%emt 0:00:17]} 22. hxg6 {[%emt 0:00:56]} Qxc4 {[%emt 0:01:03]} 23. Rxh7 {[%emt 0:00:04]} 1-0

[Event "35th European Club Cup 2019"]
[Site "Ulcinj"]
[Date "2019.11.15"]
[Round "6.14"]
[White "Tarlev, Konstantin"]
[Black "Krivonosov, Oleg"]
[Result "1-0"]
[ECO "C45"]
[WhiteElo "2564"]
[BlackElo "2404"]
[Annotator "ChessBase"]
[PlyCount "67"]
[EventDate "2019.11.10"]
[EventType "team-tourn"]
[EventCountry "MNE"]
[SourceTitle "playchess.com"]
[Source "ChessBase"]
[SourceQuality "1"]
[WhiteTeam "Viernheim"]
[BlackTeam "MRU-ROSK Consulting"]
[TimeControl "40/5400+30:1800+30"]

1. e4 {[%emt 0:00:00]} e5 {[%emt 0:00:00]} 2. Nf3 {[%emt 0:00:02]} Nc6 {[%emt 0:00:00]} 3. d4 {[%emt 0:01:52]} exd4 {[%emt 0:00:01]} 4. Nxd4 {[%emt 0:00:04]} Bc5 {[%emt 0:00:12]} 5. Nb3 {[%emt 0:00:16]} Bb6 {[%emt 0:00:25]} 6. Nc3 {[%emt 0:00:38]} Nf6 {[%emt 0:02:23]} 7. Qe2 {[%emt 0:00:15]} d6 {[%emt 0:00:27]} 8. Be3 {[%emt 0:00:54]} Be6 {[%emt 0:00:51]} 9. g3 {[%emt 0:04:58]} Qe7 {[%emt 0:02:44]} 10. Bg2 {[%emt 0:00:06]} O-O-O {[%emt 0:01:10]} 11. O-O-O {[%emt 0:01:55]} Kb8 {[%emt 0:05:49]} 12. h3 {[%emt 0:07:31]} Rhe8 {[%emt 0:05:57]} 13. Bxb6 {[%emt 0:09:46]} axb6 {[%emt 0:00:13]} 14. f4 {[%emt 0:04:31]} Bxb3 {[%emt 0:08:18]} 15. axb3 {[%emt 0:00:13]} d5 {[%emt 0:16:01]} 16. e5 {[%emt 0:03:33]} d4 {[%emt 0:00:42]} 17. Nb5 {[%emt 0:06:30]} Qc5 {[%emt 0:12:56]} 18. Qc4 {[%emt 0:00:34]} Nd5 {[%emt 0:04:01]} 19. Nxd4 {[%emt 0:03:14]} Qxc4 {[%emt 0:10:11]} 20. bxc4 {[%emt 0:01:44]} Nxd4 {[%emt 0:00:11]} 21. Rxd4 {[%emt 0:04:17]} Ne3 {[%emt 0:04:53]} 22. Rxd8+ {[%emt 0:01:24]} Rxd8 {[%emt 0:00:01]} 23. Be4 {[%emt 0:00:13]} h5 {[%emt 0:04:57]} 24. Bd3 {[%emt 0:09:52]} g6 {[%emt 0:03:53]} 25. Re1 {[%emt 0:01:40]} Nf5 {[%emt 0:00:29]} 26. e6 {[%emt 0:02:03]} fxe6 {[%emt 0:02:21]} 27. Rxe6 {[%emt 0:00:08]} Rg8 {[%emt 0:00:46]} 28. Kd2 {[%emt 0:04:43]} c6 {[%emt 0:00:28]} 29. g4 {[%emt 0:00:30]} hxg4 {[%emt 0:00:26]} 30. hxg4 {[%emt 0:01:48]} Nh4 {[%emt 0:00:19]} 31. Ke3 {[%emt 0:03:37]} Kc8 {[%emt 0:03:29]} 32. Kf2 {[%emt 0:01:07]} Kd7 {[%emt 0:01:37]} 33. Re5 {[%emt 0:00:48]} Rh8 {[%emt 0:00:43]} 34. Kg3 {[%emt 0:00:12]} 1-0

[Event "35th European Club Cup 2019"]
[Site "Ulcinj"]
[Date "2019.11.15"]
[Round "6.14"]
[White "Polzin, Rainer"]
[Black "Fernandez, Daniel Howard"]
[Result "1-0"]
[ECO "B12"]
[WhiteElo "2411"]
[BlackElo "2444"]
[Annotator "NA"]
[PlyCount "67"]
[EventDate "2019.11.10"]
[EventType "team-tourn"]
[EventCountry "MNE"]
[SourceTitle "playchess.com"]
[Source "ChessBase"]
[SourceQuality "1"]
[WhiteTeam "Berlin"]
[BlackTeam "KGSRL Gent"]
[TimeControl "40/5400+30:1800+30"]

1. e4 {[%emt 0:00:00]} c6 {[%emt 0:00:00]} 2. d4 {[%emt 0:00:00]} d5 {[%emt 0:00:00]} 3. e5 {[%emt 0:00:00]} Bf5 {[%emt 0:00:02]} 4. Nd2 {[%emt 0:00:02]} e6 {[%emt 0:02:40]} 5. Nb3 {[%emt 0:00:04]} Nd7 {[%emt 0:00:49]} 6. Nf3 {[%emt 0:00:09]} Bg6 {[%emt 0:06:23]} 7. Be2 {[%emt 0:02:29]} Ne7 {[%emt 0:00:35]} 8. O-O {[%emt 0:01:12]} a6 {[%emt 0:03:49]} 9. Bd2 {[%emt 0:01:57]} Nc8 {[%emt 0:10:12]} 10. a4 {[%emt 0:14:06]} c5 {[%emt 0:02:35]} 11. dxc5 {[%emt 0:19:19]} Nxc5 {[%emt 0:07:03]} 12. Ba5 {[%emt 0:00:09]} b6 {[%emt 0:01:00]} 13. Nxc5 {[%emt 0:00:03]} Bxc5 {[%emt 0:00:39]} 14. Bc3 {[%emt 0:01:00]} a5 {[%emt 0:00:49]} 15. Bb5+ {[%emt 0:01:46]} Kf8 {[%emt 0:01:05]} 16. Nd4 {[%emt 0:02:59]} h5 {[%emt 0:00:58]} 17. Nc6 {[%emt 0:07:59]} Qc7 {[%emt 0:00:22]} 18. Bd4 {[%emt 0:00:41]} Ne7 {[%emt 0:00:29]} 19. Nxe7 {[%emt 0:01:10]} Bxe7 {[%emt 0:03:39]} 20. Qd2 {[%emt 0:05:09]} Bf5 {[%emt 0:02:39]} 21. Rac1 {[%emt 0:02:41]} Rd8 {[%emt 0:02:49]} 22. Qe3 {[%emt 0:02:39]} Bc5 {[%emt 0:00:04]} 23. c3 {[%emt 0:00:06]} g6 {[%emt 0:01:56]} 24. b4 {[%emt 0:01:30]} Bxd4 {[%emt 0:00:07]} 25. cxd4 {[%emt 0:00:44]} Qe7 {[%emt 0:00:02]} 26. bxa5 {[%emt 0:00:19]} bxa5 {[%emt 0:00:03]} 27. Rc5 {[%emt 0:02:28]} Kg7 {[%emt 0:02:06]} 28. Rfc1 {[%emt 0:00:06]} h4 {[%emt 0:00:02]} 29. h3 {[%emt 0:04:35]} Rh7 {[%emt 0:06:47]} 30. Rc7 {[%emt 0:03:10]} Qb4 {[%emt 0:01:56]} 31. Qg5 {[%emt 0:00:21]} Rf8 {[%emt 0:00:06]} 32. Qf6+ {[%emt 0:00:33]} Kg8 {[%emt 0:00:02]} 33. Rc8 {[%emt 0:00:17]} g5 {[%emt 0:02:50]} 34. R1c5 {[%emt 0:06:55]} 1-0